[Event "*** Titled Tuesday 3|2 Blitz"]
[Site "Chess.com"]
[Date "2015.09.01"]
[Round "5"]
[White "wonderfultime"]
[Black "Mazetovic"]
[Result "1-0"]
[WhiteElo "2643"]
[BlackElo "2403"]
[TimeControl "180+2"]
[EndTime "12:00:06 PDT"]
[Termination "wonderfultime won on time"]

1. d4 {[%clk 0:03:01.9]} 1... Nf6 {[%clk 0:03:00]} 2. c4 {[%clk 0:03:03.1]} 2...
g6 {[%clk 0:03:00.8]} 3. Nc3 {[%clk 0:03:04.2]} 3... Bg7 {[%clk 0:03:01.4]} 4.
e4 {[%clk 0:03:05.5]} 4... d6 {[%clk 0:03:02.8]} 5. f3 {[%clk 0:03:06.8]} 5...
O-O {[%clk 0:03:03.2]} 6. Be3 {[%clk 0:03:08.1]} 6... e5 {[%clk 0:02:54.5]} 7.
Nge2 {[%clk 0:03:08.1]} 7... exd4 {[%clk 0:02:53.5]} 8. Nxd4 {[%clk 0:03:08.1]}
8... Nc6 {[%clk 0:02:55]} 9. Be2 {[%clk 0:03:08.4]} 9... Nh5 {[%clk 0:02:55.8]}
10. O-O {[%clk 0:03:07.1]} 10... Re8 {[%clk 0:02:26.3]} 11. Qd2 {[%clk 0:03:01]}
11... Nxd4 {[%clk 0:02:15.8]} 12. Bxd4 {[%clk 0:03:01.6]} 12... Be5 {[%clk
0:02:12.7]} 13. Rad1 {[%clk 0:02:43.9]} 13... Bxd4+ {[%clk 0:01:58.3]} 14. Qxd4
{[%clk 0:02:43.9]} 14... Nf4 {[%clk 0:01:55.4]} 15. Rfe1 {[%clk 0:02:39.1]}
15... Qg5 {[%clk 0:01:50.6]} 16. Bf1 {[%clk 0:02:40.1]} 16... Be6 {[%clk
0:01:48.5]} 17. Qd2 {[%clk 0:02:22.2]} 17... Qc5+ {[%clk 0:01:17]} 18. Qf2
{[%clk 0:02:22.3]} 18... Qxf2+ {[%clk 0:01:05.1]} 19. Kxf2 {[%clk 0:02:24.2]}
19... g5 {[%clk 0:01:05.6]} 20. Nd5 {[%clk 0:01:46.1]} 20... Bxd5 {[%clk
0:00:56.6]} 21. cxd5 {[%clk 0:01:48]} 21... Re7 {[%clk 0:00:57.1]} 22. g3 {[%clk
0:01:43.7]} 22... Ng6 {[%clk 0:00:56.2]} 23. Bh3 {[%clk 0:01:44.9]} 23... Kf8
{[%clk 0:00:54.2]} 24. Bf5 {[%clk 0:01:45.3]} 24... a5 {[%clk 0:00:43.7]} 25.
Re3 {[%clk 0:01:43.3]} 25... Ke8 {[%clk 0:00:41.1]} 26. Rb3 {[%clk 0:01:38.6]}
26... Ra7 {[%clk 0:00:40.2]} 27. Rc1 {[%clk 0:01:34.5]} 27... Kd8 {[%clk
0:00:40]} 28. Kg2 {[%clk 0:01:33.5]} 28... h6 {[%clk 0:00:32.5]} 29. Kh3 {[%clk
0:01:29]} 29... Ne5 {[%clk 0:00:17.5]} 30. f4 {[%clk 0:01:29.6]} 30... Nd7
{[%clk 0:00:13]} 31. Rbc3 {[%clk 0:01:23.8]} 31... Nc5 {[%clk 0:00:08]} 32. e5
{[%clk 0:01:21.9]} 32... gxf4 {[%clk 0:00:08.1]} 33. gxf4 {[%clk 0:01:22.8]}
33... b6 {[%clk 0:00:04.7]} 34. Re3 {[%clk 0:01:24.1]} 34... a4 {[%clk
0:00:05.3]} 35. Rg1 {[%clk 0:01:24.9]} 35... Re8 {[%clk 0:00:05.7]} 36. Rg7
{[%clk 0:01:22.3]} 1-0

[Event "*** Titled Tuesday 3|2 Blitz"]
[Site "Chess.com"]
[Date "2015.09.01"]
[Round "5"]
[White "HansCoolNiemann"]
[Black "Mugzyyy"]
[Result "1-0"]
[WhiteElo "2058"]
[BlackElo "2527"]
[TimeControl "180+2"]
[EndTime "12:00:11 PDT"]
[Termination "HansCoolNiemann won by checkmate"]

1. d4 {[%clk 0:03:01.9]} 1... Nf6 {[%clk 0:02:59.6]} 2. c4 {[%clk 0:03:02.5]}
2... d6 {[%clk 0:03:00.1]} 3. Nf3 {[%clk 0:03:02.6]} 3... b6 {[%clk 0:03:01.5]}
4. Nc3 {[%clk 0:03:02.4]} 4... Bb7 {[%clk 0:03:02.9]} 5. g3 {[%clk 0:03:03.1]}
5... h6 {[%clk 0:03:02.2]} 6. Bg2 {[%clk 0:03:03.6]} 6... g5 {[%clk 0:03:02.9]}
7. d5 {[%clk 0:03:04.3]} 7... Nbd7 {[%clk 0:03:03.3]} 8. h4 {[%clk 0:03:04.1]}
8... g4 {[%clk 0:03:04.3]} 9. Nd4 {[%clk 0:03:04.7]} 9... Ne5 {[%clk 0:03:01.6]}
10. b3 {[%clk 0:03:04.4]} 10... Qd7 {[%clk 0:03:01.3]} 11. O-O {[%clk
0:03:03.2]} 11... Bg7 {[%clk 0:02:56.4]} 12. Qc2 {[%clk 0:02:53.4]} 12... c6
{[%clk 0:02:33.4]} 13. dxc6 {[%clk 0:02:42]} 13... Nxc6 {[%clk 0:02:34.6]} 14.
Nf5 {[%clk 0:02:43.2]} 14... Bf8 {[%clk 0:02:33.5]} 15. Bb2 {[%clk 0:02:36.9]}
15... Nb4 {[%clk 0:02:00.6]} 16. Qb1 {[%clk 0:02:35.6]} 16... Bxg2 {[%clk
0:02:01.6]} 17. Kxg2 {[%clk 0:02:36]} 17... O-O-O {[%clk 0:01:59.6]} 18. a3
{[%clk 0:02:34.4]} 18... Nc6 {[%clk 0:01:57.8]} 19. Nd5 {[%clk 0:02:33.7]} 19...
Ne5 {[%clk 0:01:52.4]} 20. Nxf6 {[%clk 0:02:31.9]} 20... exf6 {[%clk 0:01:53.8]}
21. Ne3 {[%clk 0:02:28]} 21... Kb8 {[%clk 0:01:46.3]} 22. Nd5 {[%clk 0:02:27.9]}
22... f5 {[%clk 0:01:46]} 23. a4 {[%clk 0:02:25.5]} 23... Bg7 {[%clk 0:01:42.3]}
24. a5 {[%clk 0:02:25.7]} 24... b5 {[%clk 0:01:43.8]} 25. a6 {[%clk 0:02:10.3]}
25... Rhe8 {[%clk 0:01:31.3]} 26. Ra5 {[%clk 0:02:02.6]} 26... bxc4 {[%clk
0:01:17.9]} 27. Bxe5 {[%clk 0:01:43.1]} 27... dxe5 {[%clk 0:01:06.4]} 28. bxc4+
{[%clk 0:01:40.2]} 28... Ka8 {[%clk 0:01:07.7]} 29. Qb7+ {[%clk 0:00:41.6]}
29... Qxb7 {[%clk 0:01:06.5]} 30. axb7+ {[%clk 0:00:41.9]} 30... Kxb7 {[%clk
0:01:00]} 31. Rb1+ {[%clk 0:00:41.4]} 31... Kc6 {[%clk 0:01:01]} 32. Rxa7 {[%clk
0:00:41.4]} 32... Kc5 {[%clk 0:00:34.8]} 33. Rc7+ {[%clk 0:00:40.5]} 33... Kd4
{[%clk 0:00:32.1]} 34. Rd1+ {[%clk 0:00:39.8]} 34... Ke4 {[%clk 0:00:33.6]} 35.
Nc3# {[%clk 0:00:38.5]} 1-0

[Event "*** Titled Tuesday 3|2 Blitz"]
[Site "Chess.com"]
[Date "2015.09.01"]
[Round "5"]
[White "facu57"]
[Black "FairChess_on_YouTube"]
[Result "1/2-1/2"]
[WhiteElo "2468"]
[BlackElo "2709"]
[TimeControl "180+2"]
[EndTime "12:00:23 PDT"]
[Termination "Game drawn by repetition"]

1. d4 {[%clk 0:03:01.6]} 1... Nf6 {[%clk 0:03:00.4]} 2. Nf3 {[%clk 0:03:01.6]}
2... b5 {[%clk 0:03:00.3]} 3. g3 {[%clk 0:03:02.1]} 3... Bb7 {[%clk 0:03:01]} 4.
Bg2 {[%clk 0:03:04]} 4... e6 {[%clk 0:03:02.2]} 5. O-O {[%clk 0:03:03.9]} 5...
c5 {[%clk 0:03:03.4]} 6. c3 {[%clk 0:03:03]} 6... Be7 {[%clk 0:03:02.4]} 7. a3
{[%clk 0:02:58.5]} 7... O-O {[%clk 0:03:02.3]} 8. dxc5 {[%clk 0:02:57.2]} 8...
Bxc5 {[%clk 0:03:00]} 9. b4 {[%clk 0:02:59.1]} 9... Bb6 {[%clk 0:03:01]} 10. a4
{[%clk 0:02:56.6]} 10... bxa4 {[%clk 0:03:00]} 11. Qxa4 {[%clk 0:02:53.9]} 11...
a5 {[%clk 0:02:58.5]} 12. b5 {[%clk 0:02:52.7]} 12... d5 {[%clk 0:02:55.3]} 13.
Ba3 {[%clk 0:02:52.6]} 13... Re8 {[%clk 0:02:54.5]} 14. c4 {[%clk 0:02:51.5]}
14... Nbd7 {[%clk 0:02:52.4]} 15. Nbd2 {[%clk 0:02:47.6]} 15... d4 {[%clk
0:02:44.8]} 16. Ng5 {[%clk 0:02:43.1]} 16... Bxg2 {[%clk 0:02:43.9]} 17. Kxg2
{[%clk 0:02:45]} 17... Ne5 {[%clk 0:02:12]} 18. Ngf3 {[%clk 0:02:36.1]} 18...
Nxf3 {[%clk 0:02:06.1]} 19. Nxf3 {[%clk 0:02:32.6]} 19... Ne4 {[%clk 0:02:02.6]}
20. Qc2 {[%clk 0:02:25.3]} 20... Nc5 {[%clk 0:01:50.7]} 21. Bxc5 {[%clk
0:02:25.7]} 21... Bxc5 {[%clk 0:01:52]} 22. Ne5 {[%clk 0:02:26]} 22... Qc7
{[%clk 0:01:43.5]} 23. Nd3 {[%clk 0:02:15.7]} 23... e5 {[%clk 0:01:40.9]} 24.
Nxc5 {[%clk 0:02:14.4]} 24... Qxc5 {[%clk 0:01:42.6]} 25. f3 {[%clk 0:02:12.8]}
25... h5 {[%clk 0:01:36.2]} 26. h4 {[%clk 0:02:12.9]} 26... g6 {[%clk
0:01:29.5]} 27. Rfc1 {[%clk 0:02:05.7]} 27... e4 {[%clk 0:01:24.9]} 28. fxe4
{[%clk 0:01:58.7]} 28... Re6 {[%clk 0:01:26.5]} 29. Rf1 {[%clk 0:01:32.5]} 29...
Rc8 {[%clk 0:01:24.2]} 30. Rxa5 {[%clk 0:01:27.2]} 30... Qxc4 {[%clk 0:01:17.2]}
31. Qxc4 {[%clk 0:01:29.1]} 31... Rxc4 {[%clk 0:01:18.3]} 32. Rf4 {[%clk
0:01:18.3]} 32... Rc2 {[%clk 0:01:14.9]} 33. Rf2 {[%clk 0:01:15.9]} 33... Rxe4
{[%clk 0:01:13.5]} 34. Ra8+ {[%clk 0:01:16]} 34... Kg7 {[%clk 0:01:11.2]} 35.
Ra7 {[%clk 0:01:17.7]} 35... Rb2 {[%clk 0:00:47]} 36. Rfxf7+ {[%clk 0:00:56.1]}
36... Kg8 {[%clk 0:00:47.9]} 37. Rf2 {[%clk 0:00:53.1]} 37... Rxb5 {[%clk
0:00:36.2]} 38. Ra8+ {[%clk 0:00:53.4]} 38... Kg7 {[%clk 0:00:37.4]} 39. Ra7+
{[%clk 0:00:54.2]} 39... Kg8 {[%clk 0:00:38.7]} 40. Ra8+ {[%clk 0:00:54]} 40...
Kg7 {[%clk 0:00:40]} 41. Ra7+ {[%clk 0:00:55.4]} 41... Kg8 {[%clk 0:00:40.6]}
42. Ra8+ {[%clk 0:00:57]} 42... Kg7 {[%clk 0:00:42]} 43. Ra7+ {[%clk 0:00:58.1]}
1/2-1/2

[Event "*** Titled Tuesday 3|2 Blitz"]
[Site "Chess.com"]
[Date "2015.09.01"]
[Round "5"]
[White "stefanodinn"]
[Black "Gabrinsky"]
[Result "1-0"]
[WhiteElo "2117"]
[BlackElo "1988"]
[TimeControl "180+2"]
[EndTime "12:00:29 PDT"]
[Termination "stefanodinn won by checkmate"]

1. e4 {[%clk 0:03:01.9]} 1... e6 {[%clk 0:03:00.6]} 2. d4 {[%clk 0:02:59.7]}
2... d5 {[%clk 0:03:01.6]} 3. Nd2 {[%clk 0:02:59.7]} 3... a6 {[%clk 0:03:02.7]}
4. Ngf3 {[%clk 0:02:52.3]} 4... Nf6 {[%clk 0:03:02.5]} 5. e5 {[%clk 0:02:51.2]}
5... Nfd7 {[%clk 0:03:03.7]} 6. c3 {[%clk 0:02:52.1]} 6... c5 {[%clk 0:03:05.6]}
7. Bd3 {[%clk 0:02:50.3]} 7... Nc6 {[%clk 0:03:06.5]} 8. O-O {[%clk 0:02:50.6]}
8... g5 {[%clk 0:03:07]} 9. dxc5 {[%clk 0:02:28.3]} 9... g4 {[%clk 0:03:06.3]}
10. Nd4 {[%clk 0:02:26.6]} 10... Ncxe5 {[%clk 0:03:03.5]} 11. Be2 {[%clk
0:02:24.8]} 11... Bxc5 {[%clk 0:02:59.5]} 12. N2b3 {[%clk 0:02:20]} 12... Bd6
{[%clk 0:02:57.5]} 13. Bxg4 {[%clk 0:02:15.9]} 13... Qc7 {[%clk 0:02:51.9]} 14.
g3 {[%clk 0:02:10.9]} 14... b6 {[%clk 0:02:42.2]} 15. Re1 {[%clk 0:02:07.1]}
15... Bb7 {[%clk 0:02:41]} 16. Bxe6 {[%clk 0:02:03.4]} 16... fxe6 {[%clk
0:02:30.2]} 17. Nxe6 {[%clk 0:02:04.1]} 17... Qc4 {[%clk 0:02:17.3]} 18. Qh5+
{[%clk 0:01:33.8]} 18... Ke7 {[%clk 0:02:07.7]} 19. Nbd4 {[%clk 0:01:33.6]}
19... h6 {[%clk 0:01:53.3]} 20. Bxh6 {[%clk 0:01:31]} 20... Nf6 {[%clk
0:01:31.6]} 21. Qg5 {[%clk 0:01:07.9]} 21... Rag8 {[%clk 0:00:18.7]} 22. Bg7
{[%clk 0:01:01.9]} 22... Nd7 {[%clk 0:00:07.8]} 23. Nf5+ {[%clk 0:00:35.5]}
23... Ke8 {[%clk 0:00:06.4]} 24. Nxd6+ {[%clk 0:00:36.1]} 24... Ke7 {[%clk
0:00:07.8]} 25. Nxc4 {[%clk 0:00:33.8]} 25... dxc4 {[%clk 0:00:08.4]} 26. Nc5+
{[%clk 0:00:31.7]} 26... Kf7 {[%clk 0:00:09.5]} 27. Nxd7 {[%clk 0:00:18]} 27...
Nxd7 {[%clk 0:00:03.5]} 28. Re7# {[%clk 0:00:17.6]} 1-0

[Event "*** Titled Tuesday 3|2 Blitz"]
[Site "Chess.com"]
[Date "2015.09.01"]
[Round "5"]
[White "Penguininja"]
[Black "Danirod"]
[Result "0-1"]
[WhiteElo "2142"]
[BlackElo "2357"]
[TimeControl "180+2"]
[EndTime "12:00:44 PDT"]
[Termination "Danirod won by resignation"]

1. d4 {[%clk 0:02:33.8]} 1... Nf6 {[%clk 0:02:59.8]} 2. c4 {[%clk 0:02:34.4]}
2... e6 {[%clk 0:03:00.9]} 3. g3 {[%clk 0:02:33.4]} 3... c5 {[%clk 0:03:01.5]}
4. Nf3 {[%clk 0:02:34.1]} 4... cxd4 {[%clk 0:03:01.7]} 5. Nxd4 {[%clk 0:02:36]}
5... Nc6 {[%clk 0:03:00.6]} 6. Bg2 {[%clk 0:02:36.8]} 6... Bb4+ {[%clk
0:03:01.4]} 7. Bd2 {[%clk 0:02:37]} 7... Be7 {[%clk 0:02:56.3]} 8. Nb3 {[%clk
0:02:32.6]} 8... d6 {[%clk 0:02:54.5]} 9. O-O {[%clk 0:02:32.6]} 9... O-O {[%clk
0:02:55.5]} 10. Nc3 {[%clk 0:02:33.8]} 10... Ne5 {[%clk 0:02:56.6]} 11. Nb5
{[%clk 0:01:50.8]} 11... Nxc4 {[%clk 0:02:56.6]} 12. Qc2 {[%clk 0:01:46.4]}
12... d5 {[%clk 0:02:52.3]} 13. e4 {[%clk 0:01:44.3]} 13... a6 {[%clk 0:02:51]}
14. Nc3 {[%clk 0:01:34.1]} 14... Nxd2 {[%clk 0:02:42]} 15. Nxd2 {[%clk
0:01:31.6]} 15... d4 {[%clk 0:02:34.4]} 16. e5 {[%clk 0:01:18.1]} 16... dxc3
{[%clk 0:02:34.3]} 17. exf6 {[%clk 0:01:19.2]} 17... Bxf6 {[%clk 0:02:30.5]} 18.
bxc3 {[%clk 0:01:19.9]} 18... Qc7 {[%clk 0:02:31.3]} 19. Ne4 {[%clk 0:01:20.6]}
19... Be7 {[%clk 0:02:30.5]} 20. Rab1 {[%clk 0:01:18.6]} 20... Rb8 {[%clk
0:02:27.6]} 21. Rfd1 {[%clk 0:01:10]} 21... Bd7 {[%clk 0:02:28]} 22. c4 {[%clk
0:01:09.2]} 22... Bc6 {[%clk 0:02:27.3]} 23. c5 {[%clk 0:01:04.1]} 23... Rfd8
{[%clk 0:02:24.4]} 24. Rd2 {[%clk 0:00:54.7]} 24... Rxd2 {[%clk 0:02:23.5]} 25.
Qxd2 {[%clk 0:00:56.1]} 25... Qe5 {[%clk 0:01:58.2]} 26. Rb4 {[%clk 0:00:23.7]}
26... Bxc5 {[%clk 0:01:38.3]} 27. Nxc5 {[%clk 0:00:19.6]} 27... Qxc5 {[%clk
0:01:39.5]} 28. Bxc6 {[%clk 0:00:18.6]} 28... Qxc6 {[%clk 0:01:40.7]} 29. Rd4
{[%clk 0:00:20.2]} 29... h5 {[%clk 0:01:27.1]} 30. Qg5 {[%clk 0:00:18.2]} 30...
Qf3 {[%clk 0:01:18.5]} 31. h4 {[%clk 0:00:17.1]} 31... Rc8 {[%clk 0:01:18.4]}
32. Rd7 {[%clk 0:00:13.6]} 32... b5 {[%clk 0:01:08.7]} 33. Qd2 {[%clk
0:00:14.2]} 33... Qc6 {[%clk 0:01:05.7]} 34. Kh2 {[%clk 0:00:12.6]} 34... Qc2
{[%clk 0:00:55.9]} 35. Qf4 {[%clk 0:00:10.3]} 35... Qf5 {[%clk 0:00:53.2]} 36.
Qd4 {[%clk 0:00:09.2]} 36... Rc2 {[%clk 0:00:52.9]} 37. Rd8+ {[%clk 0:00:10.5]}
37... Kh7 {[%clk 0:00:53.8]} 38. Kg2 {[%clk 0:00:12]} 38... Rxa2 {[%clk
0:00:50.8]} 39. Rf8 {[%clk 0:00:10.9]} 39... Re2 {[%clk 0:00:49.1]} 40. Qc5
{[%clk 0:00:11.4]} 40... Qxc5 {[%clk 0:00:49.5]} 0-1

[Event "*** Titled Tuesday 3|2 Blitz"]
[Site "Chess.com"]
[Date "2015.09.01"]
[Round "5"]
[White "MITerryble"]
[Black "nightmaresknight"]
[Result "1-0"]
[WhiteElo "2578"]
[BlackElo "2336"]
[TimeControl "180+2"]
[EndTime "12:01:19 PDT"]
[Termination "MITerryble won by resignation"]

1. d4 {[%clk 0:02:58.5]} 1... d5 {[%clk 0:02:47.1]} 2. Nf3 {[%clk 0:02:59.4]}
2... Nf6 {[%clk 0:02:47.1]} 3. c4 {[%clk 0:03:00.3]} 3... dxc4 {[%clk 0:02:47]}
4. e3 {[%clk 0:03:00.9]} 4... e6 {[%clk 0:02:42.8]} 5. Bxc4 {[%clk 0:03:01]}
5... c5 {[%clk 0:02:40.2]} 6. O-O {[%clk 0:03:01.1]} 6... a6 {[%clk 0:02:41]} 7.
dxc5 {[%clk 0:02:59]} 7... Qxd1 {[%clk 0:02:40.2]} 8. Rxd1 {[%clk 0:02:58.5]}
8... Bxc5 {[%clk 0:02:40.9]} 9. Nbd2 {[%clk 0:02:59.7]} 9... O-O {[%clk
0:02:41]} 10. Nb3 {[%clk 0:02:50.4]} 10... Be7 {[%clk 0:02:41.2]} 11. Be2 {[%clk
0:02:46.9]} 11... b5 {[%clk 0:02:40]} 12. a4 {[%clk 0:02:46.9]} 12... b4 {[%clk
0:02:37.9]} 13. Ne5 {[%clk 0:02:42.3]} 13... Bb7 {[%clk 0:02:38.3]} 14. Na5
{[%clk 0:02:42.6]} 14... Bd5 {[%clk 0:02:31.6]} 15. f3 {[%clk 0:02:43.5]} 15...
Bc5 {[%clk 0:02:30.5]} 16. Kf1 {[%clk 0:02:42.4]} 16... Ra7 {[%clk 0:02:24.3]}
17. e4 {[%clk 0:02:41.6]} 17... Ba8 {[%clk 0:02:23.4]} 18. Nb3 {[%clk
0:02:42.3]} 18... Rc7 {[%clk 0:01:56.6]} 19. Bf4 {[%clk 0:02:42.5]} 19... Nh5
{[%clk 0:01:49.7]} 20. Nxc5 {[%clk 0:01:58.7]} 20... Rxc5 {[%clk 0:01:35.9]} 21.
Nd3 {[%clk 0:01:57.6]} 21... Rcc8 {[%clk 0:01:24]} 22. Bd6 {[%clk 0:01:55.5]}
22... Rfd8 {[%clk 0:01:24.1]} 23. Bxb4 {[%clk 0:01:56]} 23... Nc6 {[%clk
0:01:25]} 24. Bc3 {[%clk 0:01:54.9]} 24... Nf6 {[%clk 0:01:12.4]} 25. Nb4 {[%clk
0:01:44.5]} 25... Nxb4 {[%clk 0:00:58.8]} 26. Bxb4 {[%clk 0:01:45.4]} 26... Bb7
{[%clk 0:01:00]} 27. Rxd8+ {[%clk 0:01:45.8]} 27... Rxd8 {[%clk 0:01:00.6]} 28.
Rc1 {[%clk 0:01:46.7]} 28... Ne8 {[%clk 0:00:59.7]} 29. Kf2 {[%clk 0:01:32.7]}
29... f6 {[%clk 0:00:58.6]} 30. Ke3 {[%clk 0:01:31.2]} 30... Kf7 {[%clk
0:00:59.1]} 31. Ba5 {[%clk 0:01:27.8]} 31... Rd7 {[%clk 0:00:59.4]} 32. Rc3
{[%clk 0:01:28.3]} 32... Nd6 {[%clk 0:00:59.1]} 33. Rb3 {[%clk 0:01:25.9]} 33...
Bc6 {[%clk 0:00:49.2]} 34. Rb4 {[%clk 0:01:14.1]} 34... f5 {[%clk 0:00:44.3]}
35. Bb6 {[%clk 0:01:03.9]} 35... Bb7 {[%clk 0:00:25.6]} 36. e5 {[%clk
0:01:01.6]} 36... Nc8 {[%clk 0:00:24.7]} 37. Bc5 {[%clk 0:00:57.7]} 37... g5
{[%clk 0:00:25.5]} 38. g3 {[%clk 0:00:56.9]} 38... Ne7 {[%clk 0:00:21.3]} 39.
Bxe7 {[%clk 0:00:52]} 39... Kxe7 {[%clk 0:00:22.3]} 40. a5 {[%clk 0:00:52.4]}
40... Bc8 {[%clk 0:00:21.1]} 41. Rb8 {[%clk 0:00:49]} 41... Rc7 {[%clk 0:00:21]}
42. Ra8 {[%clk 0:00:45.2]} 42... Rc5 {[%clk 0:00:21.6]} 43. f4 {[%clk
0:00:39.6]} 43... gxf4+ {[%clk 0:00:21.1]} 44. gxf4 {[%clk 0:00:41.5]} 44... Bb7
{[%clk 0:00:19.6]} 45. Ra7 {[%clk 0:00:41.2]} 1-0

[Event "*** Titled Tuesday 3|2 Blitz"]
[Site "Chess.com"]
[Date "2015.09.01"]
[Round "5"]
[White "Zlatan56"]
[Black "DanielNaroditsky"]
[Result "0-1"]
[WhiteElo "2548"]
[BlackElo "2540"]
[TimeControl "180+2"]
[EndTime "12:01:29 PDT"]
[Termination "DanielNaroditsky won by resignation"]

1. Nf3 {[%clk 0:03:01.9]} 1... d5 {[%clk 0:03:00.8]} 2. g3 {[%clk 0:03:00.5]}
2... c6 {[%clk 0:03:00.5]} 3. Bg2 {[%clk 0:03:00.8]} 3... Bg4 {[%clk 0:03:02]}
4. c4 {[%clk 0:02:59.4]} 4... e6 {[%clk 0:03:00.8]} 5. O-O {[%clk 0:03:00.4]}
5... Nd7 {[%clk 0:03:00.8]} 6. cxd5 {[%clk 0:02:59.9]} 6... cxd5 {[%clk
0:02:56.7]} 7. d3 {[%clk 0:03:00.2]} 7... Ngf6 {[%clk 0:02:57]} 8. Qb3 {[%clk
0:02:56.9]} 8... Bxf3 {[%clk 0:02:54.3]} 9. Bxf3 {[%clk 0:02:56.8]} 9... Nc5
{[%clk 0:02:56.1]} 10. Qb5+ {[%clk 0:02:54.4]} 10... Qd7 {[%clk 0:02:57.1]} 11.
Nc3 {[%clk 0:02:51.2]} 11... a6 {[%clk 0:02:55.3]} 12. Qxd7+ {[%clk 0:02:51.2]}
12... Ncxd7 {[%clk 0:02:57.1]} 13. Bf4 {[%clk 0:02:44.8]} 13... h6 {[%clk
0:02:45.4]} 14. Rfc1 {[%clk 0:02:43.7]} 14... g5 {[%clk 0:02:46]} 15. Bd2 {[%clk
0:02:43.7]} 15... Bd6 {[%clk 0:02:44.7]} 16. d4 {[%clk 0:02:35.2]} 16... Ke7
{[%clk 0:02:35.9]} 17. Rc2 {[%clk 0:02:26.9]} 17... Rhc8 {[%clk 0:02:34.3]} 18.
Rac1 {[%clk 0:02:27.2]} 18... Rc6 {[%clk 0:02:15.8]} 19. e4 {[%clk 0:02:21.3]}
19... dxe4 {[%clk 0:02:16.5]} 20. Nxe4 {[%clk 0:02:21.7]} 20... Rxc2 {[%clk
0:02:18.3]} 21. Rxc2 {[%clk 0:02:22]} 21... Nd5 {[%clk 0:02:19.5]} 22. Nxd6
{[%clk 0:01:53.8]} 22... Kxd6 {[%clk 0:02:19]} 23. Bxd5 {[%clk 0:01:54.7]} 23...
Kxd5 {[%clk 0:02:04.9]} 24. Rc7 {[%clk 0:01:52.7]} 24... Kd6 {[%clk 0:02:06.3]}
25. Rxb7 {[%clk 0:01:50.8]} 25... Rb8 {[%clk 0:02:08]} 26. Rxb8 {[%clk
0:01:19.5]} 26... Nxb8 {[%clk 0:02:08.7]} 27. h4 {[%clk 0:01:11.9]} 27... f6
{[%clk 0:01:57]} 28. Bb4+ {[%clk 0:01:02.1]} 28... Kd5 {[%clk 0:01:55.1]} 29.
Bf8 {[%clk 0:00:27.2]} 29... gxh4 {[%clk 0:01:51.2]} 30. gxh4 {[%clk 0:00:25.2]}
30... h5 {[%clk 0:01:52.5]} 31. Bc5 {[%clk 0:00:20]} 31... Nc6 {[%clk
0:01:45.8]} 32. Kf1 {[%clk 0:00:16.3]} 32... e5 {[%clk 0:01:31.7]} 33. dxe5
{[%clk 0:00:11.8]} 33... Kxc5 {[%clk 0:01:32.9]} 34. exf6 {[%clk 0:00:12.5]}
34... Kd6 {[%clk 0:01:34.6]} 35. Ke2 {[%clk 0:00:11.3]} 35... Ke6 {[%clk
0:01:35.5]} 36. Ke3 {[%clk 0:00:12.5]} 36... Kxf6 {[%clk 0:01:36.1]} 37. Ke4
{[%clk 0:00:13.7]} 37... Ke6 {[%clk 0:01:19.2]} 38. a3 {[%clk 0:00:14.5]} 38...
Ne5 {[%clk 0:01:09.1]} 39. b4 {[%clk 0:00:12.3]} 39... Nc4 {[%clk 0:01:00.5]}
40. a4 {[%clk 0:00:12.6]} 40... Nb6 {[%clk 0:01:01.9]} 41. a5 {[%clk 0:00:12.2]}
41... Nd5 {[%clk 0:01:03.4]} 42. Kd4 {[%clk 0:00:11.7]} 42... Kd6 {[%clk
0:00:35.6]} 43. Kc4 {[%clk 0:00:09.6]} 43... Kc6 {[%clk 0:00:35.4]} 44. f3
{[%clk 0:00:08.9]} 44... Ne3+ {[%clk 0:00:32.8]} 45. Kd4 {[%clk 0:00:08.2]}
45... Nf5+ {[%clk 0:00:34.2]} 46. Ke5 {[%clk 0:00:09.5]} 46... Nxh4 {[%clk
0:00:35.7]} 47. Kf4 {[%clk 0:00:10.8]} 47... Kb5 {[%clk 0:00:35.6]} 0-1

[Event "*** Titled Tuesday 3|2 Blitz"]
[Site "Chess.com"]
[Date "2015.09.01"]
[Round "5"]
[White "PowerThinking2650"]
[Black "SidArun"]
[Result "0-1"]
[WhiteElo "2085"]
[BlackElo "1934"]
[TimeControl "180+2"]
[EndTime "12:01:30 PDT"]
[Termination "SidArun won by resignation"]

1. e4 {[%clk 0:03:01.6]} 1... c6 {[%clk 0:03:00.5]} 2. d4 {[%clk 0:03:01.8]}
2... d5 {[%clk 0:03:01.7]} 3. Nc3 {[%clk 0:03:02.3]} 3... dxe4 {[%clk
0:03:02.9]} 4. Nxe4 {[%clk 0:03:03.3]} 4... Bf5 {[%clk 0:03:04.6]} 5. Ng3 {[%clk
0:03:03.6]} 5... Bg6 {[%clk 0:03:06.2]} 6. Nf3 {[%clk 0:03:04.1]} 6... Nd7
{[%clk 0:03:06.8]} 7. h4 {[%clk 0:03:05.4]} 7... h6 {[%clk 0:03:07.4]} 8. h5
{[%clk 0:03:06.6]} 8... Bh7 {[%clk 0:03:08.7]} 9. Bd3 {[%clk 0:03:08.1]} 9...
Bxd3 {[%clk 0:03:10.3]} 10. Qxd3 {[%clk 0:03:09.6]} 10... e6 {[%clk 0:03:12.2]}
11. Bd2 {[%clk 0:03:10.7]} 11... Ngf6 {[%clk 0:03:12.2]} 12. O-O-O {[%clk
0:03:10.9]} 12... Be7 {[%clk 0:03:13.6]} 13. Kb1 {[%clk 0:03:09.9]} 13... c5
{[%clk 0:02:59.9]} 14. Ne4 {[%clk 0:02:55.7]} 14... Nxe4 {[%clk 0:02:44.3]} 15.
Qxe4 {[%clk 0:02:56.3]} 15... Qb6 {[%clk 0:02:44.7]} 16. d5 {[%clk 0:02:51.3]}
16... Nf6 {[%clk 0:02:44.1]} 17. Qa4+ {[%clk 0:02:50.7]} 17... Kf8 {[%clk
0:02:43.1]} 18. dxe6 {[%clk 0:02:38.4]} 18... fxe6 {[%clk 0:02:19.4]} 19. Ne5
{[%clk 0:02:36.2]} 19... Rg8 {[%clk 0:02:07.5]} 20. g4 {[%clk 0:02:05.2]} 20...
Qa6 {[%clk 0:01:42]} 21. Qf4 {[%clk 0:01:53.3]} 21... Bd6 {[%clk 0:01:12]} 22.
Bc3 {[%clk 0:01:40.7]} 22... Ke8 {[%clk 0:00:48.4]} 23. Rhe1 {[%clk 0:01:33.6]}
23... Rd8 {[%clk 0:00:26.3]} 24. f3 {[%clk 0:01:18.3]} 24... b5 {[%clk
0:00:27.1]} 25. b3 {[%clk 0:01:10.7]} 25... c4 {[%clk 0:00:24]} 26. Qe3 {[%clk
0:01:02.1]} 26... b4 {[%clk 0:00:21.7]} 27. Bd4 {[%clk 0:00:42.1]} 27... Nd5
{[%clk 0:00:20.7]} 28. Qe4 {[%clk 0:00:42]} 28... Bxe5 {[%clk 0:00:18.7]} 29.
Bxe5 {[%clk 0:00:38.7]} 29... c3 {[%clk 0:00:18.6]} 30. Qg6+ {[%clk 0:00:37.3]}
30... Ke7 {[%clk 0:00:17]} 31. Ka1 {[%clk 0:00:32.1]} 31... Qa3 {[%clk
0:00:12.3]} 32. Rb1 {[%clk 0:00:32.5]} 32... Qa6 {[%clk 0:00:09]} 33. Bxg7
{[%clk 0:00:19.2]} 33... Rdf8 {[%clk 0:00:08.2]} 34. Bxf8+ {[%clk 0:00:17.9]}
34... Kxf8 {[%clk 0:00:09.6]} 35. Qxe6 {[%clk 0:00:18.4]} 35... Qxe6 {[%clk
0:00:10.8]} 36. Rxe6 {[%clk 0:00:18.8]} 36... Kf7 {[%clk 0:00:12.7]} 37. Rd6
{[%clk 0:00:19.5]} 37... Ne3 {[%clk 0:00:13.8]} 38. Rc1 {[%clk 0:00:18.8]} 38...
Re8 {[%clk 0:00:13.9]} 39. Rd4 {[%clk 0:00:17.7]} 39... Nxc2+ {[%clk 0:00:14.5]}
40. Kb1 {[%clk 0:00:15.4]} 40... Nxd4 {[%clk 0:00:15.2]} 41. a3 {[%clk
0:00:15.2]} 41... a5 {[%clk 0:00:14.5]} 0-1